[Event "8th Ali Ipek Tournament 2020"]
[Site "Ankara"]
[Date "2020.03.05"]
[Round "2.13"]
[White "Sari, Engin"]
[Black "Alkan, Omer Tarik"]
[Result "0-1"]
[ECO "C14"]
[WhiteElo "1457"]
[BlackElo "1757"]
[Annotator "NA RC"]
[PlyCount "80"]
[EventDate "2020.03.04"]
[EventType "swiss"]
[EventCountry "TUR"]
[SourceTitle "playchess.com"]
[Source "ChessBase"]
[SourceQuality "1"]
[TimeControl "5400+30"]

1. e4 {[%emt 0:00:30]} e6 {[%emt 0:00:30]} 2. d4 {[%emt 0:00:30]} d5 {[%emt 0:00:00]} 3. Nc3 {[%emt 0:00:00]} Nf6 {[%emt 0:00:00]} 4. Bg5 {[%emt 0:00:00]} Be7 {[%emt 0:00:30]} 5. e5 {[%emt 0:00:00]} Nfd7 {[%emt 0:00:00]} 6. h4 {[%emt 0:00:00]} h6 {[%emt 0:00:00]} 7. Bxe7 {[%emt 0:00:00]} Qxe7 {[%emt 0:00:00]} 8. Qg4 {[%emt 0:01:00]} g6 {[%emt 0:00:00]} 9. Bd3 {[%emt 0:00:00]} a6 {[%emt 0:01:30]} 10. O-O-O {[%emt 0:02:00]} c5 {[%emt 0:00:00]} 11. f4 {[%emt 0:01:30]} cxd4 {[%emt 0:00:00]} 12. Nce2 {[%emt 0:01:30]} Nc6 {[%emt 0:00:30]} 13. a3 {[%emt 0:00:00]} b5 {[%emt 0:00:30]} 14. h5 {[%emt 0:05:00]} g5 {[%emt 0:01:30]} 15. Nf3 {[%emt 0:03:30]} gxf4 {[%emt 0:09:30]} 16. Qg7 {[%emt 0:02:30]} Qf8 {[%emt 0:00:30]} 17. Qg4 {[%emt 0:06:30]} Ndxe5 {[%emt 0:03:30]} 18. Qxf4 {[%emt 0:01:30]} Nxf3 {[%emt 0:00:30]} 19. Qxf3 {[%emt 0:00:30]} Qe7 {[%emt 0:01:30]} 20. Rhe1 {[%emt 0:01:30]} Bb7 {[%emt 0:08:30]} 21. Nf4 {[%emt 0:07:30]} O-O-O {[%emt 0:00:30]} 22. g4 {[%emt 0:08:30]} Kb8 {[%emt 0:04:30]} 23. Kb1 {[%emt 0:00:30]} Qd6 {[%emt 0:00:30]} 24. Bf1 {[%emt 0:03:30]} e5 {[%emt 0:03:30]} 25. Ng2 {[%emt 0:02:30]} e4 {[%emt 0:05:30]} 26. Qxf7 {[%emt 0:00:30]} Rdf8 {[%emt 0:00:00]} 27. Qg6 {[%emt 0:00:30]} Qxg6 {[%emt 0:00:00]} 28. hxg6 {[%emt 0:00:00]} Rhg8 {[%emt 0:00:30]} 29. Nh4 {[%emt 0:01:00]} Ne5 {[%emt 0:00:00]} 30. Nf5 {[%emt 0:03:30]} Rxg6 {[%emt 0:01:00]} 31. Nxd4 {[%emt 0:00:30]} Nf3 {[%emt 0:00:30]} 32. Nxf3 {[%emt 0:01:30]} Rxf3 {[%emt 0:00:30]} 33. c3 {[%emt 0:01:30]} Rg3 {[%emt 0:02:30]} 34. Be2 {[%emt 0:00:30]} Rg2 {[%emt 0:00:00]} 35. Rd4 {[%emt 0:09:30]} Rf6 {[%emt 0:01:00]} 36. Kc1 {[%emt 0:00:30]} Rff2 {[%emt 0:01:30]} 37. Kd2 {[%emt 0:01:30]} Kc7 {[%emt 0:00:30]} 38. Ke3 {[%emt 0:00:30]} Kd6 {[%emt 0:01:30]} 39. Rd2 {[%emt 0:01:30]} Bc8 {[%emt 0:00:30]} 40. Red1 {[%emt 0:00:30]} Rxe2+ {[%emt 0:00:30]} 0-1

[Event "8th Ali Ipek Tournament 2020"]
[Site "Ankara"]
[Date "2020.03.05"]
[Round "2.14"]
[White "Ercan, Mehmet Fahri"]
[Black "Kamisli, Yigit"]
[Result "0-1"]
[ECO "E85"]
[WhiteElo "1810"]
[BlackElo "1393"]
[Annotator "NA RC"]
[PlyCount "82"]
[EventDate "2020.03.04"]
[EventType "swiss"]
[EventCountry "TUR"]
[SourceTitle "playchess.com"]
[Source "ChessBase"]
[SourceQuality "1"]
[TimeControl "5400+30"]

{[%evp 8,72,43,27,37,10,46,55,73,53,73,49,52,31,52,25,68,73,75,55,54,32767,-42,32767,-205,-190,-187,-214,-214,-208,32767,-263,32767,32767,-214,-219,-203,-234,-257,-246,-233,-270,-132,-150,-248,-209,-187,-280,-259,-371,-425,-539,-720,-906,-1417,-1988,-1434,-1208,-2003,-1421,-6191,-1461,-2119,-2112,-2383,-29984,-29985]} 1. c4 {[%emt 0:10:30]} Nf6 {[%emt 0:01:30]} 2. Nc3 {[%emt 0:00:30]} g6 {[%emt 0:00:30]} 3. e4 {[%emt 0:00:30]} d6 {[%emt 0:00:00]} 4. d4 {[%emt 0:00:30]} Bg7 {[%emt 0:00:00]} 5. f3 {[%emt 0:01:30]} O-O {[%emt 0:01:30]} 6. Be3 {[%emt 0:00:00]} e5 {[%emt 0:00:30]} 7. Nge2 {[%emt 0:01:00]} Nc6 {[%emt 0:01:30]} 8. d5 {[%emt 0:00:00]} Na5 {[%emt 0:01:30]} 9. Nc1 {[%emt 0:02:00] E85: King's Indian: Sämisch: 6...e5.} c5 {[%emt 0:00:30]} 10. a3 {[%emt 0:01:30]} b6 {[%emt 0:05:30]} 11. Qd2 {[%emt 0:01:30] [#]} Nb7 $146 {[%emt 0:04:30]} ({Predecessor:} 11... Nh5 12. b4 Nb7 13. Nb3 f5 14. Bd3 Qh4+ 15. Bf2 Qe7 16. O-O f4 17. Rfb1 g5 {1-0 (65) Novikov,I (2280)-Petrushin,A (2415) Volgodonsk 1983}) 12. g4 {[%emt 0:00:30]} Bd7 {[%emt 0:13:30]} 13. h4 {[%emt 0:00:30]} h5 $1 {[%emt 0:02:30]} 14. gxh5 {[%emt 0:01:30]} Nxh5 {[%emt 0:00:30]} 15. N1e2 {[%emt 0:02:30]} Na5 {[%emt 0:05:30]} 16. Qd3 {[%emt 0:00:30]} Nb3 {[%emt 0:06:30]} 17. Rd1 {[%emt 0:00:00]} Nd4 {[%emt 0:00:30]} 18. Bg2 {[%emt 0:00:00]} a6 {[%emt 0:13:30]} 19. a4 {[%emt 0:06:30]} b5 {[%emt 0:05:30]} 20. axb5 {[%emt 0:00:30]} axb5 {[%emt 0:00:00]} 21. Nxb5 {[%emt 0:01:30]} Nxe2 {[%emt 0:03:00]} 22. Kxe2 {[%emt 0:02:30]} Ng3+ {[%emt 0:00:30]} 23. Kf2 {[%emt 0:00:00]} Nxh1+ {[%emt 0:00:30]} 24. Rxh1 {[%emt 0:00:00] [#]} Bxb5 {[%emt 0:06:30]} (24... f5 $1 $19 {[%cal Rf5e4]} 25. Bc1 Qb6 26. exf5 gxf5) 25. cxb5 {[%emt 0:00:00] [#]} Bf6 $1 {[%emt 0:04:30]} 26. h5 {[%emt 0:00:00]} Bg5 {[%emt 0:01:30]} 27. hxg6 {[%emt 0:02:30]} fxg6 {[%emt 0:00:30]} 28. Bh3 {[%emt 0:02:30]} Ra2 {[%emt 0:04:26]} 29. Be6+ {[%emt 0:00:30]} Kg7 {[%emt 0:00:00]} 30. Qe2 {[%emt 0:04:30]} Bxe3+ {[%emt 0:04:37]} 31. Kxe3 {[%emt 0:02:30]} Qg5+ {[%emt 0:02:17]} 32. Kf2 {[%emt 0:07:30]} Rh8 {[%emt 0:01:53]} 33. Rxh8 {[%emt 0:01:30]} Kxh8 {[%emt 0:00:04]} 34. Qc2 {[%emt 0:02:30] [#]} Qf4 $1 {[%emt 0:03:40]} 35. Bh3 {[%emt 0:02:30]} Ra1 {[%emt 0:03:18]} (35... Qh2+ $142 36. Bg2 Ra1) 36. Bf1 {[%emt 0:08:30]} Qh2+ {[%emt 0:01:22]} 37. Bg2 {[%emt 0:00:30]} Qh4+ {[%emt 0:00:00]} 38. Ke3 {[%emt 0:01:30]} Qe1+ {[%emt 0:00:15]} 39. Qe2 {[%emt 0:00:30]} Qg1+ {[%emt 0:02:24]} 40. Kd2 {[%emt 0:00:30]} Qc1+ {[%emt 0:00:30]} 41. Kd3 {[%emt 0:00:00]} c4# {[%emt 0:00:00]} 0-1

[Event "8th Ali Ipek Tournament 2020"]
[Site "Ankara"]
[Date "2020.03.05"]
[Round "2.15"]
[White "Sac, Hakan"]
[Black "Ersahince, Umut Utku"]
[Result "0-1"]
[ECO "C45"]
[WhiteElo "1542"]
[BlackElo "1645"]
[Annotator "NA RC"]
[PlyCount "58"]
[EventDate "2020.03.04"]
[EventType "swiss"]
[EventCountry "TUR"]
[SourceTitle "playchess.com"]
[Source "ChessBase"]
[SourceQuality "1"]
[TimeControl "5400+30"]

1. e4 {[%emt 0:03:30]} e5 {[%emt 0:00:30]} 2. Nf3 {[%emt 0:00:30]} Nc6 {[%emt 0:00:00]} 3. d4 {[%emt 0:02:30]} exd4 {[%emt 0:00:00]} 4. Nxd4 {[%emt 0:00:30]} Nf6 {[%emt 0:00:00]} 5. Nxc6 {[%emt 0:00:30]} bxc6 {[%emt 0:00:00]} 6. e5 {[%emt 0:01:30]} Qe7 {[%emt 0:00:30]} 7. Qe2 {[%emt 0:01:30]} Nd5 {[%emt 0:00:00]} 8. c4 {[%emt 0:00:30]} Ba6 {[%emt 0:01:00]} 9. Qe4 {[%emt 0:06:30]} Nb6 {[%emt 0:08:30]} 10. Bd3 {[%emt 0:07:30]} d5 {[%emt 0:04:30]} 11. exd6 {[%emt 0:10:30]} cxd6 {[%emt 0:01:30]} 12. b3 {[%emt 0:12:30]} d5 {[%emt 0:08:30]} 13. Qxe7+ {[%emt 0:02:30]} Bxe7 {[%emt 0:00:30]} 14. Nd2 {[%emt 0:02:30]} O-O-O {[%emt 0:06:30]} 15. Bb2 {[%emt 0:05:30]} Bb4 {[%emt 0:01:30]} 16. O-O-O {[%emt 0:00:30]} f6 {[%emt 0:07:30]} 17. Bf5+ {[%emt 0:02:30]} Kb7 {[%emt 0:00:30]} 18. cxd5 {[%emt 0:01:30]} Rxd5 {[%emt 0:04:30]} 19. Bg4 {[%emt 0:06:30]} Bd3 {[%emt 0:05:30]} 20. a3 {[%emt 0:04:30]} Bd6 {[%emt 0:01:30]} 21. b4 {[%emt 0:00:30]} a5 {[%emt 0:21:30]} 22. Bf3 {[%emt 0:01:30]} Rc8 {[%emt 0:01:30]} 23. g3 {[%emt 0:05:41]} axb4 {[%emt 0:01:30]} 24. Nb3 {[%emt 0:00:56]} Bg6 {[%emt 0:05:40]} 25. axb4 {[%emt 0:01:21]} Bxb4 {[%emt 0:01:42]} 26. Bd4 {[%emt 0:02:03]} Nc4 {[%emt 0:05:26]} 27. Rde1 {[%emt 0:01:32]} Ba3+ {[%emt 0:01:49]} 28. Kd1 {[%emt 0:00:45]} Rb5 {[%emt 0:00:29]} 29. Re7+ {[%emt 0:00:55]} Bxe7 {[%emt 0:00:05]} 0-1

[Event "8th Ali Ipek Tournament 2020"]
[Site "Ankara"]
[Date "2020.03.05"]
[Round "2.17"]
[White "Ugur, Cem"]
[Black "Kesgin, Murat Can"]
[Result "0-1"]
[ECO "B30"]
[WhiteElo "1672"]
[BlackElo "1551"]
[Annotator "NA RC"]
[PlyCount "88"]
[EventDate "2020.03.04"]
[EventType "swiss"]
[EventCountry "TUR"]
[SourceTitle "playchess.com"]
[Source "ChessBase"]
[SourceQuality "1"]
[TimeControl "5400+30"]

1. e4 {[%emt 0:04:30]} c5 {[%emt 0:00:30]} 2. Nf3 {[%emt 0:00:00]} Nc6 {[%emt 0:00:30]} 3. d3 {[%emt 0:02:00]} Nf6 {[%emt 0:05:30]} 4. g3 {[%emt 0:00:30]} e5 {[%emt 0:04:30]} 5. Bg2 {[%emt 0:00:30]} Be7 {[%emt 0:00:30]} 6. O-O {[%emt 0:00:00]} O-O {[%emt 0:00:30]} 7. Re1 {[%emt 0:01:00]} d6 {[%emt 0:00:30]} 8. c3 {[%emt 0:06:30]} Bg4 {[%emt 0:09:30]} 9. Nbd2 {[%emt 0:04:30]} Qd7 {[%emt 0:04:30]} 10. Nf1 {[%emt 0:00:30]} Bh3 {[%emt 0:09:30]} 11. Ne3 {[%emt 0:01:30]} Bxg2 {[%emt 0:01:30]} 12. Kxg2 {[%emt 0:00:00]} d5 {[%emt 0:02:30]} 13. exd5 {[%emt 0:01:00]} Nxd5 {[%emt 0:01:30]} 14. Nc4 {[%emt 0:00:30]} f6 {[%emt 0:01:30]} 15. d4 {[%emt 0:00:30]} b5 {[%emt 0:00:30]} 16. Ne3 {[%emt 0:01:30]} cxd4 {[%emt 0:03:30]} 17. cxd4 {[%emt 0:00:30]} Nxe3+ {[%emt 0:08:30]} 18. Bxe3 {[%emt 0:01:30]} e4 {[%emt 0:03:30]} 19. Nd2 {[%emt 0:01:30]} Qd5 {[%emt 0:00:00]} 20. Qb3 {[%emt 0:01:30]} Qxb3 {[%emt 0:00:00]} 21. Nxb3 {[%emt 0:00:30]} Nb4 {[%emt 0:02:30]} 22. Re2 {[%emt 0:00:30]} f5 {[%emt 0:03:30]} 23. a3 {[%emt 0:05:30]} Nd5 {[%emt 0:03:30]} 24. Nc5 {[%emt 0:17:30]} Rf7 {[%emt 0:12:30]} 25. Ne6 {[%emt 0:04:30]} h6 {[%emt 0:01:30]} 26. Nf4 {[%emt 0:03:30]} Nxf4+ {[%emt 0:02:27]} 27. Bxf4 {[%emt 0:00:30]} g5 {[%emt 0:00:30]} 28. Be5 {[%emt 0:00:00]} Bf6 {[%emt 0:00:41]} 29. Bxf6 {[%emt 0:03:00]} Rxf6 {[%emt 0:00:01]} 30. Rc1 {[%emt 0:00:30]} Rd6 {[%emt 0:00:48]} 31. Rc5 {[%emt 0:00:30]} Rf8 {[%emt 0:01:50]} 32. Rxb5 {[%emt 0:01:30]} Rxd4 {[%emt 0:00:07]} 33. f3 {[%emt 0:03:30]} exf3+ {[%emt 0:09:50]} 34. Kxf3 {[%emt 0:00:00]} f4 {[%emt 0:00:36]} 35. Re6 {[%emt 0:08:00]} g4+ {[%emt 0:01:03]} 36. Kxg4 {[%emt 0:01:30]} f3+ {[%emt 0:00:30]} 37. Kh5 {[%emt 0:00:30]} Rd7 {[%emt 0:02:49]} 38. Re1 {[%emt 0:06:30]} f2 {[%emt 0:00:46]} 39. Rf1 {[%emt 0:00:30]} Re7 {[%emt 0:00:00]} 40. Kxh6 {[%emt 0:07:31]} Re1 {[%emt 0:00:00]} 41. Rb7 {[%emt 0:02:14]} Rf6+ {[%emt 0:01:26]} 42. Kg5 {[%emt 0:00:05]} Rxf1 {[%emt 0:00:33]} 43. Kxf6 {[%emt 0:00:06]} Rc1 {[%emt 0:00:00]} 44. Kg6 {[%emt 0:03:03]} Rc6+ {[%emt 0:00:00]} 0-1

[Event "8th Ali Ipek Tournament 2020"]
[Site "Ankara"]
[Date "2020.03.05"]
[Round "2.19"]
[White "Ilarslan, Can"]
[Black "Bilen, Tuna"]
[Result "1-0"]
[ECO "C79"]
[WhiteElo "1630"]
[BlackElo "1367"]
[Annotator "NA RC"]
[PlyCount "39"]
[EventDate "2020.03.04"]
[EventType "swiss"]
[EventCountry "TUR"]
[SourceTitle "playchess.com"]
[Source "ChessBase"]
[SourceQuality "1"]
[TimeControl "5400+30"]

1. e4 {[%emt 0:00:30]} e5 {[%emt 0:00:30]} 2. Nf3 {[%emt 0:00:30]} Nc6 {[%emt 0:00:00]} 3. Bb5 {[%emt 0:01:30]} a6 {[%emt 0:00:00]} 4. Ba4 {[%emt 0:00:30]} d6 {[%emt 0:00:00]} 5. c3 {[%emt 0:00:00]} Bd7 {[%emt 0:01:00]} 6. O-O {[%emt 0:00:00]} Nf6 {[%emt 0:00:00]} 7. Re1 {[%emt 0:00:30]} g6 {[%emt 0:00:00]} 8. d4 {[%emt 0:00:30]} exd4 {[%emt 0:00:30]} 9. Bxc6 {[%emt 0:06:30]} Bxc6 {[%emt 0:10:30]} 10. e5 {[%emt 0:02:30]} dxe5 {[%emt 0:02:30]} 11. Nxe5 {[%emt 0:00:30]} Be7 {[%emt 0:01:30]} 12. Nxc6 {[%emt 0:01:30]} bxc6 {[%emt 0:00:00]} 13. Bh6 {[%emt 0:20:30]} dxc3 {[%emt 0:17:00]} 14. Qe2 {[%emt 0:06:30]} Rg8 {[%emt 0:14:30]} 15. Nxc3 {[%emt 0:02:30]} Qd6 {[%emt 0:02:30]} 16. Rad1 {[%emt 0:01:30]} Qe6 {[%emt 0:00:00]} 17. Qf3 {[%emt 0:01:30]} Qc4 {[%emt 0:02:00]} 18. Qxf6 {[%emt 0:03:30]} Qc5 {[%emt 0:00:30]} 19. b4 {[%emt 0:00:30]} Qxb4 {[%emt 0:00:30]} 20. Qxc6# {[%emt 0:00:00]} 1-0

[Event "8th Ali Ipek Tournament 2020"]
[Site "Ankara"]
[Date "2020.03.05"]
[Round "2.20"]
[White "Uzun, Anil"]
[Black "Firat, Mehmet Bugra"]
[Result "0-1"]
[ECO "A30"]
[WhiteElo "1360"]
[BlackElo "1601"]
[Annotator "NA RC"]
[PlyCount "88"]
[EventDate "2020.03.04"]
[EventType "swiss"]
[EventCountry "TUR"]
[SourceTitle "playchess.com"]
[Source "ChessBase"]
[SourceQuality "1"]
[TimeControl "5400+30"]

1. Nf3 {[%emt 0:00:30]} Nf6 {[%emt 0:00:30]} 2. c4 {[%emt 0:00:00]} e6 {[%emt 0:01:30]} 3. b3 {[%emt 0:01:00]} b6 {[%emt 0:03:30]} 4. Bb2 {[%emt 0:00:30]} Bb7 {[%emt 0:00:30]} 5. e3 {[%emt 0:01:30]} Be7 {[%emt 0:00:30]} 6. Be2 {[%emt 0:00:30]} O-O {[%emt 0:02:30]} 7. O-O {[%emt 0:00:00]} c5 {[%emt 0:02:30]} 8. d4 {[%emt 0:02:00]} d6 {[%emt 0:02:30]} 9. Nc3 {[%emt 0:00:30]} Nbd7 {[%emt 0:01:30]} 10. Qc2 {[%emt 0:01:30]} Rc8 {[%emt 0:00:30]} 11. Rfd1 {[%emt 0:01:30]} Qc7 {[%emt 0:00:30]} 12. Rac1 {[%emt 0:07:30]} Qb8 {[%emt 0:02:30]} 13. Nd2 {[%emt 0:02:30]} cxd4 {[%emt 0:02:30]} 14. exd4 {[%emt 0:00:30]} d5 {[%emt 0:00:30]} 15. Bf3 {[%emt 0:04:30]} dxc4 {[%emt 0:00:30]} 16. Bxb7 {[%emt 0:00:30]} cxb3 {[%emt 0:00:30]} 17. Qxb3 {[%emt 0:03:30]} Qxb7 {[%emt 0:00:30]} 18. Nb5 {[%emt 0:00:00]} a6 {[%emt 0:04:30]} 19. Ba3 {[%emt 0:00:00]} Bxa3 {[%emt 0:00:30]} 20. Nxa3 {[%emt 0:00:30]} Nd5 {[%emt 0:02:30]} 21. f3 {[%emt 0:01:30]} N7f6 {[%emt 0:03:30]} 22. Nac4 {[%emt 0:01:30]} Rb8 {[%emt 0:02:30]} 23. g3 {[%emt 0:05:30]} b5 {[%emt 0:01:30]} 24. Ne5 {[%emt 0:02:30]} b4 {[%emt 0:06:30]} 25. Nb1 {[%emt 0:07:30]} Rfc8 {[%emt 0:01:30]} 26. Rc4 {[%emt 0:03:30]} Rxc4 {[%emt 0:01:30]} 27. Nxc4 {[%emt 0:00:30]} Qa7 {[%emt 0:03:30]} 28. Kg2 {[%emt 0:04:30]} Rc8 {[%emt 0:01:30]} 29. Rd3 {[%emt 0:04:30]} a5 {[%emt 0:03:30]} 30. Nbd2 {[%emt 0:01:30]} Qa6 {[%emt 0:01:30]} 31. Nb2 {[%emt 0:05:30]} h5 {[%emt 0:06:30]} 32. Na4 {[%emt 0:05:30]} Rc3 {[%emt 0:01:30]} 33. Nxc3 {[%emt 0:05:30]} Qxd3 {[%emt 0:00:30]} 34. Ncb1 {[%emt 0:00:30]} Qxd4 {[%emt 0:00:30]} 35. Qa4 {[%emt 0:01:30]} Nc3 {[%emt 0:01:30]} 36. Nb3 {[%emt 0:02:30]} Qd3 {[%emt 0:01:30]} 37. Nxc3 {[%emt 0:00:30]} bxc3 {[%emt 0:00:00]} 38. Qxa5 {[%emt 0:01:30]} Qe2+ {[%emt 0:01:00]} 39. Kh3 {[%emt 0:01:30]} Qf1+ {[%emt 0:00:30]} 40. Kh4 {[%emt 0:00:30]} Qxf3 {[%emt 0:00:00]} 41. Kh3 {[%emt 0:05:36]} Ne4 {[%emt 0:01:00]} 42. Qb4 {[%emt 0:01:53]} Nf2+ {[%emt 0:02:30]} 43. Kh4 {[%emt 0:00:49]} Qf6+ {[%emt 0:00:00]} 44. Kxh5 {[%emt 0:00:49]} Qh6# {[%emt 0:00:00]} 0-1

[Event "8th Ali Ipek Tournament 2020"]
[Site "Ankara"]
[Date "2020.03.06"]
[Round "3.3"]
[White "Vural, Burak"]
[Black "Pektas, Yigit"]
[Result "0-1"]
[ECO "B10"]
[WhiteElo "1604"]
[BlackElo "2161"]
[Annotator "ChessBase"]
[PlyCount "54"]
[EventDate "2020.03.04"]
[EventType "swiss"]
[EventCountry "TUR"]
[SourceTitle "playchess.com"]
[Source "ChessBase"]
[SourceQuality "1"]
[TimeControl "5400+30"]

1. e4 {[%emt 0:01:30]} c6 {[%emt 0:00:30]} 2. c4 {[%emt 0:04:30]} d5 {[%emt 0:00:00]} 3. exd5 {[%emt 0:00:30]} cxd5 {[%emt 0:00:00]} 4. cxd5 {[%emt 0:00:30]} Nf6 {[%emt 0:00:00]} 5. Qa4+ {[%emt 0:00:30]} Nbd7 {[%emt 0:00:00]} 6. Nc3 {[%emt 0:00:30]} g6 {[%emt 0:03:30]} 7. Bc4 {[%emt 0:04:30]} Bg7 {[%emt 0:00:30]} 8. d3 {[%emt 0:00:00]} O-O {[%emt 0:01:30]} 9. Nf3 {[%emt 0:02:00]} a6 {[%emt 0:00:30]} 10. O-O {[%emt 0:02:30]} b5 {[%emt 0:01:30]} 11. Qc2 {[%emt 0:07:30]} bxc4 {[%emt 0:00:30]} 12. dxc4 {[%emt 0:00:30]} Bb7 {[%emt 0:00:30]} 13. Re1 {[%emt 0:01:30]} Re8 {[%emt 0:00:00]} 14. Be3 {[%emt 0:04:30]} Rc8 {[%emt 0:02:00]} 15. Qe2 {[%emt 0:01:30]} Qc7 {[%emt 0:01:30]} 16. b3 {[%emt 0:01:30]} e6 {[%emt 0:00:30]} 17. dxe6 {[%emt 0:02:30]} Rxe6 {[%emt 0:03:30]} 18. Nd4 {[%emt 0:01:30]} Re7 {[%emt 0:00:00]} 19. f3 {[%emt 0:01:30]} Ng4 {[%emt 0:02:00]} 20. fxg4 {[%emt 0:00:30]} Bxd4 {[%emt 0:00:30]} 21. Qd3 {[%emt 1:00:30]} Bxc3 {[%emt 1:21:30]} 22. Qxc3 {[%emt 0:00:30]} Qc6 {[%emt 0:00:30]} 23. Qb2 {[%emt 0:00:30]} Rce8 {[%emt 0:00:00]} 24. Qf2 {[%emt 0:00:00]} Rxe3 {[%emt 0:00:00]} 25. Rxe3 {[%emt 0:00:00]} Rxe3 {[%emt 0:00:00]} 26. Rf1 {[%emt 0:00:00]} f6 {[%emt 0:00:00]} 27. Rd1 {[%emt 0:00:00]} Qe4 {[%emt 0:00:00]} 0-1

[Event "8th Ali Ipek Tournament 2020"]
[Site "Ankara"]
[Date "2020.03.07"]
[Round "3.5"]
[White "Oktem, Ege Tuna"]
[Black "Akin, Yagiz Cinar"]
[Result "1/2-1/2"]
[ECO "B22"]
[WhiteElo "1546"]
[BlackElo "1861"]
[Annotator "NA RC"]
[PlyCount "89"]
[EventDate "2020.03.04"]
[EventType "swiss"]
[EventCountry "TUR"]
[TimeControl "5400+30"]

1. e4 {[%emt 0:00:30]} c5 {[%emt 0:00:30]} 2. c3 {[%emt 0:00:30]} d5 {[%emt 0:01:30]} 3. exd5 {[%emt 0:01:30]} Qxd5 {[%emt 0:00:30]} 4. d4 {[%emt 0:00:00]} Nc6 {[%emt 0:04:30]} 5. Nf3 {[%emt 0:01:00]} e5 {[%emt 0:04:30]} 6. Be2 {[%emt 0:15:30]} e4 {[%emt 0:18:30]} 7. Ne5 {[%emt 0:09:30]} Nxe5 {[%emt 0:00:30]} 8. dxe5 {[%emt 0:00:30]} Qxd1+ {[%emt 0:00:00]} 9. Bxd1 {[%emt 0:00:00]} Bd7 {[%emt 0:01:00]} 10. O-O {[%emt 0:02:00]} O-O-O {[%emt 0:00:30]} 11. Nd2 {[%emt 0:07:30]} f5 {[%emt 0:06:30]} 12. f4 {[%emt 0:02:30]} Bb5 {[%emt 0:01:30]} 13. c4 {[%emt 0:00:30]} Bc6 {[%emt 0:00:30]} 14. Nb3 {[%emt 0:00:30]} b6 {[%emt 0:01:30]} 15. a4 {[%emt 0:04:30]} Nh6 {[%emt 0:02:30]} 16. h3 {[%emt 0:01:30]} Be7 {[%emt 0:01:30]} 17. Be2 {[%emt 0:01:30]} Nf7 {[%emt 0:12:30]} 18. a5 {[%emt 0:01:30]} Kb7 {[%emt 0:00:30]} 19. Be3 {[%emt 0:01:30]} Rhg8 {[%emt 0:01:30]} 20. axb6 {[%emt 0:01:30]} axb6 {[%emt 0:00:00]} 21. Kh2 {[%emt 0:01:30]} Rdf8 {[%emt 0:06:00]} 22. g4 {[%emt 0:02:30]} g6 {[%emt 0:00:30]} 23. gxf5 {[%emt 0:02:30]} gxf5 {[%emt 0:00:30]} 24. Rg1 {[%emt 0:00:00]} Nd8 {[%emt 0:04:30]} 25. Rxg8 {[%emt 0:02:00]} Rxg8 {[%emt 0:00:30]} 26. Rg1 {[%emt 0:00:30]} Rxg1 {[%emt 0:00:00]} 27. Kxg1 {[%emt 0:00:30]} Ne6 {[%emt 0:00:00]} 28. Nd2 {[%emt 0:03:30]} Nd4 {[%emt 0:00:00]} 29. Bd1 {[%emt 0:00:30]} b5 {[%emt 0:04:00]} 30. Nb3 {[%emt 0:04:30]} Nxb3 {[%emt 0:05:30]} 31. Bxb3 {[%emt 0:00:30]} b4 {[%emt 0:00:30]} 32. Bc2 {[%emt 0:01:30]} Be8 {[%emt 0:01:30]} 33. Bd1 {[%emt 0:00:30]} Bf7 {[%emt 0:00:30]} 34. b3 {[%emt 0:00:30]} Kc6 {[%emt 0:00:30]} 35. Kf1 {[%emt 0:01:30]} Kd7 {[%emt 0:00:00]} 36. Ke1 {[%emt 0:00:30]} Ke8 {[%emt 0:00:00]} 37. Kd2 {[%emt 0:00:30]} Kf8 {[%emt 0:00:30]} 38. Bf2 {[%emt 0:00:00]} Kg7 {[%emt 0:00:30]} 39. Ke3 {[%emt 0:00:00]} Kh6 {[%emt 0:01:30]} 40. Be2 {[%emt 0:00:30]} Be6 {[%emt 0:00:30]} 41. Bg3 {[%emt 0:00:30]} Bf7 {[%emt 0:01:30]} 42. Bf2 {[%emt 0:00:30]} Bg6 {[%emt 0:00:30]} 43. Bg3 {[%emt 0:00:00]} Kg7 {[%emt 0:00:30]} 44. Bf2 {[%emt 0:01:00]} Kf8 {[%emt 0:00:30]} 45. Bg3 {[%emt 0:00:00]} 1/2-1/2

[Event "8th Ali Ipek Tournament 2020"]
[Site "Ankara"]
[Date "2020.03.06"]
[Round "3.6"]
[White "Ibik, Halit Zavuz"]
[Black "Ilarslan, Can"]
[Result "1-0"]
[ECO "C89"]
[WhiteElo "1991"]
[BlackElo "1630"]
[Annotator "ChessBase"]
[PlyCount "56"]
[EventDate "2020.03.04"]
[EventType "swiss"]
[EventCountry "TUR"]
[SourceTitle "playchess.com"]
[Source "ChessBase"]
[SourceQuality "1"]
[TimeControl "5400+30"]

1. e4 {[%emt 0:03:30]} e5 {[%emt 0:00:30]} 2. Nf3 {[%emt 0:00:30]} Nc6 {[%emt 0:00:30]} 3. Bb5 {[%emt 0:00:00]} a6 {[%emt 0:00:00]} 4. Ba4 {[%emt 0:00:00]} Nf6 {[%emt 0:00:00]} 5. O-O {[%emt 0:00:00]} Be7 {[%emt 0:00:30]} 6. Re1 {[%emt 0:00:00]} b5 {[%emt 0:00:30]} 7. Bb3 {[%emt 0:00:30]} O-O {[%emt 0:00:30]} 8. c3 {[%emt 0:00:30]} d5 {[%emt 0:00:30]} 9. exd5 {[%emt 0:00:30]} Nxd5 {[%emt 0:00:30]} 10. Nxe5 {[%emt 0:01:30]} Nxe5 {[%emt 0:00:30]} 11. Rxe5 {[%emt 0:00:00]} c6 {[%emt 0:00:30]} 12. d3 {[%emt 0:00:00]} Bd6 {[%emt 0:00:30]} 13. Re1 {[%emt 0:00:30]} Qh4 {[%emt 0:00:30]} 14. g3 {[%emt 0:01:30]} Qh3 {[%emt 0:00:30]} 15. Re4 {[%emt 0:01:30]} Nf6 {[%emt 0:16:30]} 16. Rh4 {[%emt 0:01:30]} Qf5 {[%emt 0:00:30]} 17. Bc2 {[%emt 0:47:30]} h5 {[%emt 0:35:30]} 18. d4 {[%emt 0:04:30]} Qd5 {[%emt 0:02:30]} 19. c4 {[%emt 0:04:30]} Qe6 {[%emt 0:11:30]} 20. Nc3 {[%emt 0:17:43]} g6 {[%emt 0:04:30]} 21. Bg5 {[%emt 0:04:40]} Nh7 {[%emt 0:03:57]} 22. d5 {[%emt 0:01:31]} cxd5 {[%emt 0:01:14]} 23. cxd5 {[%emt 0:00:06]} Qd7 {[%emt 0:02:45]} 24. Rxh5 {[%emt 0:08:41]} gxh5 {[%emt 0:00:30]} 25. Bxh7+ {[%emt 0:00:30]} Kxh7 {[%emt 0:00:30]} 26. Qxh5+ {[%emt 0:00:30]} Kg8 {[%emt 0:00:30]} 27. Bf6 {[%emt 0:00:30]} Qh3 {[%emt 0:00:30]} 28. Qg5+ {[%emt 0:00:30]} Kh7 1-0